bitfinex/quotes_ETHUSD_20250822
["timestamp","ask_amount","ask_price","bid_price","bid_amount"]
[1755866424977,0.74880001,4229.8,4229.7,4.18323387]
[1755866425217,1e-08,4229.8,4229.7,8.38523387]
[1755866425983,1e-08,4229.8,4229.7,4.18323387]
[1755866426319,0.74880001,4229.8,4229.7,8.38523387]
[1755866426620,0.45980001,4229.8,4229.7,8.38523387]
[1755866427040,1e-08,4229.8,4229.7,4.18323387]
[1755866427186,1e-08,4229.8,4229.7,8.38523387]
[1755866427390,1e-08,4229.8,4229.7,8.38423387]
[1755866427904,0.28900001,4229.8,4229.7,8.38423387]
[1755866428118,0.02,4232.8,4231.7,2.36311647]
[1755866428321,0.4598,4232.4,4231.7,1.819]
[1755866428527,0.7688,4231.8,4231.7,1.819]
[1755866428815,0.7688,4231.8,4231.7,5.87]
[1755866429225,0.7688,4231.8,4231.7,6.02]
[1755866429432,0.768,4231.8,4231.7,1.819]
[1755866429592,0.768,4231.8,4231.7,6.02]
[1755866429995,0.768,4231.8,4231.7,8.38311647]
[1755866430245,0.0192,4231.8,4231.7,4.40081741]
[1755866430396,0.768,4231.8,4231.7,6.23770094]
[1755866430601,0.768,4231.8,4231.7,8.60081741]
[1755866431295,0.479,4231.8,4231.7,8.60081741]
[1755866431725,0.479,4231.8,4231.7,4.18211647]
[1755866431726,0.768,4231.8,4231.7,4.18211647]
[1755866431928,0.768,4231.8,4231.7,8.60081708]
[1755866432129,0.768,4231.8,4231.7,2.03770061]
[1755866432325,0.768,4231.8,4231.7,6.019]
[1755866432778,0.768,4231.8,4229.9,0.2328]
[1755866432779,0.768,4231.8,4229.9,0.1184]
[1755866432933,0.768,4231.8,4229.7,8.04919322]
[1755866432934,0.4598,4231.7,4230.0,1.819]
[1755866433131,0.4598,4231.7,4230.1,4.05]
[1755866433359,0.4598,4231.7,4230.0,1.819]
[1755866433360,0.289,4230.2,4230.0,1.819]
[1755866433542,0.4598,4230.1,4230.0,1.819]
[1755866433887,1.818,4231.7,4230.0,6.018]
[1755866434172,0.4598,4230.6,4230.3,2.36386791]
[1755866434465,0.4598,4230.5,4230.4,4.199]
[1755866434667,0.7488,4230.5,4230.4,6.56284266]
[1755866435479,3.18372,4231.6,4230.4,6.56284266]
[1755866435480,0.4598,4231.1,4230.4,6.56284266]
[1755866435680,0.4598,4231.1,4231.0,2.36350744]
[1755866435857,0.4598,4231.1,4231.0,6.56250744]
[1755866436252,0.001,4232.7,4231.0,4.199]
[1755866436454,0.289,4231.1,4230.8,1.818]
[1755866436653,0.4598,4231.0,4230.8,1.818]
[1755866436855,17.4341851,4233.1,4230.9,3.031]
[1755866437084,0.36983375,4231.6,4231.0,2.36350744]
[1755866437390,0.36983375,4231.6,4231.5,2.36322816]
[1755866437552,0.4598,4231.9,4231.7,2.36311647]
[1755866437753,0.4598,4231.9,4231.5,6.56222816]
[1755866437754,0.4598,4231.7,4231.5,4.199]
[1755866437952,0.7488,4231.6,4230.8,1.818]
[1755866438254,0.7488,4231.6,4231.5,2.36322816]
[1755866438461,0.0202,4231.8,4231.7,2.36311647]
[1755866438694,0.0202,4231.8,4231.7,4.20474763]
[1755866438986,0.0202,4231.8,4231.7,4.18111647]
[1755866439389,0.0202,4231.8,4231.7,8.38011647]
[1755866439553,0.4904,4231.8,4231.7,4.18111647]
[1755866439754,0.7891,4231.8,4231.7,6.017]
[1755866439988,0.0202,4231.8,4231.7,8.38011647]
[1755866440391,0.0202,4231.8,4231.7,8.56311647]
[1755866441107,1e-08,4231.8,4231.7,12.22311647]
[1755866441261,1e-08,4231.8,4231.7,12.33751647]
[1755866441714,0.00020001,4232.3,4232.2,3.02283729]
[1755866442006,0.00020001,4232.3,4232.2,6.77146566]
[1755866442173,0.00020001,4232.3,4232.2,10.52223729]
[1755866442702,0.4902,4233.8,4233.7,2.36200014]
[1755866442907,0.7889,4233.8,4233.7,6.56500014]
[1755866443115,0.7889,4233.8,4233.6,1.818]
[1755866443274,0.02,4233.8,4233.7,6.56400014]
[1755866443660,0.02,4233.8,4233.7,5.36200014]
[1755866444060,0.7889,4233.8,4233.7,4.207]
[1755866444502,0.7889,4233.8,4231.2,5.682]
[1755866444798,0.4702,4233.7,4231.5,2.36322816]
[1755866444999,0.4702,4233.7,4231.3,6.027]
[1755866445000,0.36965234,4233.5,4233.0,2.36234001]
[1755866445161,0.2987,4233.1,4232.8,1.818]
[1755866445492,0.36965234,4233.5,4233.0,2.36239073]
[1755866445693,0.2987,4233.1,4232.9,2.36243291]
[1755866445859,0.2987,4233.1,4233.0,4.21]
[1755866446395,0.2987,4233.1,4232.8,1.818]
[1755866446704,0.4702,4233.0,4232.8,1.818]
[1755866446927,0.36965234,4233.5,4232.9,4.21]
[1755866447093,0.2987,4233.0,4232.9,4.21]
[1755866447504,0.7689,4233.0,4232.9,4.21]
[1755866448290,0.36969668,4233.4,4232.9,4.21]
[1755866448291,0.36969668,4233.4,4233.0,2.36239073]
[1755866448622,0.36969668,4233.4,4232.9,4.21]
[1755866448623,0.2987,4233.1,4232.3,1.818]
[1755866448920,0.4702,4233.0,4232.4,6.56970074]
[1755866449094,0.2987,4232.5,4232.4,6.56970074]
[1755866449296,0.7689,4232.5,4232.4,6.56970074]
[1755866449737,0.36969668,4233.4,4232.4,4.207]
[1755866450021,0.7689,4232.5,4232.4,4.207]
[1755866450220,0.7689,4232.5,4232.4,6.56972564]
[1755866450422,0.7689,4232.5,4232.3,1.818]
[1755866450722,0.4702,4232.4,4231.8,0.02]
[1755866450936,0.4702,4232.4,4231.9,4.203]
[1755866451117,0.2987,4232.0,4231.9,4.203]
[1755866451520,0.7689,4232.0,4231.9,4.203]
[1755866451915,0.7689,4232.0,4231.8,0.02]
[1755866452224,0.4702,4231.9,4231.8,0.02]
[1755866452412,0.7689,4231.9,4231.8,0.02]
[1755866453729,0.36975288,4232.3,4231.8,0.02]
[1755866453929,0.83915288,4232.3,4231.8,0.02]
[1755866454138,0.36895288,4232.3,4232.2,2.36283729]
[1755866455220,0.36895288,4232.3,4232.2,2.54583729]
[1755866455396,0.001,4233.0,4232.2,0.183]
[1755866455597,0.3707073,4233.0,4232.8,2.36247158]
[1755866455804,0.3707073,4233.0,4232.8,6.56049823]
[1755866456002,0.7689,4232.9,4232.8,4.198]
[1755866456614,0.7689,4232.9,4231.8,2.07868006]
[1755866456832,0.2987,4232.9,4231.9,6.85663857]
[1755866457154,0.4702,4232.8,4232.1,2.36289112]
[1755866457365,0.4702,4232.8,4232.1,4.198]
[1755866457518,0.2987,4232.2,4231.8,1.838]
[1755866457713,0.4702,4232.1,4231.9,4.198]
[1755866457947,0.4702,4232.0,4231.8,1.838]
[1755866458246,0.36974723,4232.4,4232.1,2.36284112]
[1755866458629,0.36974723,4232.4,4232.0,0.02362948]
[1755866458630,0.4702,4232.3,4232.0,0.02362948]
[1755866458951,0.2987,4232.2,4231.8,1.838]
[1755866459266,0.4702,4232.1,4231.8,1.838]
[1755866459571,0.2987,4231.9,4231.8,0.02]
[1755866459934,0.7689,4231.9,4231.8,0.02]
[1755866460319,1.13869128,4231.9,4231.8,0.02]
[1755866461162,0.36979128,4231.9,4231.8,0.02]
[1755866461343,1.13869128,4231.9,4231.8,0.02]
[1755866463621,1.13869128,4231.9,4231.8,2.38306063]
[1755866463923,0.36979128,4231.9,4231.8,0.02]
[1755866464157,0.36979128,4231.9,4231.8,2.38306063]
[1755866464622,0.36979128,4231.9,4231.8,2.58969123]
[1755866464967,0.37,4232.4,4232.3,2.36278146]
[1755866465272,0.37,4232.4,4232.3,6.56078146]
[1755866465446,0.37,4232.4,4232.3,4.198]
[1755866465626,0.37,4232.4,4232.3,6.56078146]
[1755866466133,0.36975901,4232.7,4232.3,6.56078146]
[1755866466134,0.3692,4232.6,4232.5,2.36266981]
[1755866466559,0.3692,4232.6,4232.5,2.54566981]
[1755866467355,0.3692,4232.6,4232.5,2.36266981]
[1755866467953,0.3692,4232.6,4232.5,2.54566981]
[1755866468156,0.3692,4232.6,4232.5,2.36266981]
[1755866468354,0.3692,4232.6,4232.5,6.56066981]
[1755866469532,0.3692,4232.6,4232.5,6.74366981]
[1755866470326,0.3692,4232.6,4232.5,6.85806981]
[1755866470553,0.3692,4232.6,4232.5,6.74366981]
[1755866470822,0.3692,4232.6,4232.5,6.85806981]
[1755866471124,0.02,4233.8,4232.5,6.85806981]
[1755866471125,0.02,4233.8,4233.7,2.36200014]
[1755866471325,0.3179,4233.8,4233.7,4.197]
[1755866471550,0.4301,4233.7,4233.6,1.818]
[1755866471749,0.728,4233.7,4233.6,6.015]
[1755866471948,0.728,4233.7,4233.6,8.37705593]
[1755866472135,0.4301,4233.7,4233.6,8.37705593]
[1755866472543,0.728,4233.7,4233.6,6.015]
[1755866472750,0.728,4233.7,4233.3,4.197]
[1755866473082,0.4301,4233.6,4233.3,4.197]
[1755866473266,0.2979,4233.4,4233.3,4.197]
[1755866473429,0.728,4233.4,4232.8,1.817]
[1755866473634,0.728,4233.4,4232.9,4.22062446]
[1755866473859,0.4301,4233.3,4233.0,4.197]
[1755866474065,0.2979,4233.1,4232.8,1.817]
[1755866474234,0.2979,4233.1,4232.9,4.22062446]
[1755866474439,0.79976111,4233.4,4232.9,4.22062446]
[1755866474635,0.36966111,4233.4,4233.0,2.36239073]
[1755866474853,0.4301,4233.3,4233.0,2.36239073]
[1755866475184,0.36966111,4233.4,4233.3,2.36222332]
[1755866475348,0.36966111,4233.4,4233.3,4.197]
[1755866475542,1.09766111,4233.4,4233.3,4.197]
[1755866475741,0.36966111,4233.4,4233.3,6.55922332]
[1755866476166,0.02,4233.8,4233.7,2.36200014]
[1755866476350,0.02,4233.8,4233.7,6.55900014]
[1755866476553,0.02,4233.8,4232.8,1.817]
[1755866476554,0.748,4233.8,4233.4,2.36211548]
[1755866476786,0.4301,4233.7,4233.5,4.197]
[1755866476979,0.2979,4233.6,4232.8,1.817]
[1755866477190,0.728,4233.6,4232.8,1.817]
[1755866477363,0.4301,4233.5,4232.9,6.55944654]
[1755866477561,0.4301,4233.5,4232.9,4.197]
[1755866477745,0.36965323,4233.5,4233.4,2.36216752]
[1755866478083,0.36965323,4233.5,4233.4,6.55916752]
[1755866478380,0.36885323,4233.5,4233.4,6.55816752]
[1755866478586,0.66675323,4233.5,4233.4,4.196]
[1755866478881,1.09685323,4233.5,4233.4,6.55816752]
[1755866479048,1.09685323,4233.5,4233.1,2.36232974]
[1755866479049,1.09685323,4233.5,4233.2,2.36227366]
[1755866479248,0.66675323,4233.5,4233.4,4.196]
[1755866479454,0.36885323,4233.5,4233.4,6.74116752]
[1755866479649,0.02,4233.8,4233.7,2.36200014]
[1755866479868,0.02,4233.8,4233.7,6.55800014]
[1755866480072,0.38961313,4233.8,4233.7,6.55800014]
[1755866480276,1.11761313,4233.8,4233.7,4.196]
[1755866480619,1.11761313,4233.8,4233.6,2.36205426]
[1755866480752,1.11761313,4233.8,4233.7,6.55800014]
[1755866480954,0.38961313,4233.8,4233.7,6.74100014]
[1755866481193,0.38961313,4233.8,4233.7,4.196]
[1755866481396,0.38961313,4233.8,4233.7,6.55800014]
[1755866481577,0.38961313,4233.8,4233.7,4.196]
[1755866481782,0.81971313,4233.8,4233.7,4.196]
[1755866481992,0.38961313,4233.8,4233.7,6.55800014]
[1755866482291,0.38961313,4233.8,4233.7,4.196]
[1755866482292,1.11521313,4233.8,4233.7,4.196]
[1755866482471,0.38721313,4233.8,4233.7,4.196]
[1755866482852,1.11521313,4233.8,4233.7,4.196]
[1755866483054,1.11521313,4233.8,4233.5,4.196]
[1755866483287,0.4301,4233.7,4233.0,0.0236239]
[1755866483791,0.4301,4233.7,4233.1,4.196]
[1755866483988,0.2979,4233.1,4232.9,2.36243633]
[1755866484188,0.2979,4233.1,4233.0,6.55839073]
[1755866484404,0.4301,4233.4,4233.1,2.36228589]
[1755866484607,0.0176,4233.8,4233.1,2.36228589]
[1755866484608,0.4301,4233.3,4233.1,2.36228589]
[1755866484809,0.4301,4233.3,4233.2,2.36227912]
[1755866484978,0.36966293,4233.4,4233.1,0.02362334]
[1755866485178,0.4301,4233.2,4233.1,2.38595827]
[1755866485622,0.4301,4233.2,4233.1,0.02362334]
[1755866485826,0.4301,4233.2,4233.0,6.55834849]
[1755866486001,0.4301,4233.2,4233.0,4.196]
[1755866486002,0.728,4233.2,4233.0,4.196]
[1755866486315,0.728,4233.2,4233.0,0.0236239]
[1755866486611,0.4301,4233.1,4231.9,2.3629534]
[1755866486924,0.4301,4233.1,4232.4,4.108]
[1755866487281,0.36971275,4233.0,4232.4,4.108]
[1755866487821,0.81981689,4235.0,4233.7,2.36200014]
[1755866488111,0.79974465,4235.1,4233.7,6.74100014]
[1755866488744,0.79974465,4235.1,4233.7,6.85540014]
[1755866488951,0.36964465,4235.1,4233.7,6.85540014]
[1755866489114,0.4301,4235.5,4233.7,6.85540014]
[1755866489508,2.18653583,4235.6,4233.7,6.85540014]
[1755866489712,0.4301,4234.5,4233.7,6.57500014]
[1755866490416,17.3954065,4235.3,4233.0,1.817]
[1755866490417,0.4301,4234.1,4233.0,1.817]
[1755866490748,0.0168,4233.8,4233.6,2.36205431]
[1755866491050,0.0168,4233.8,4233.7,4.109]
[1755866491348,0.0168,4233.8,4233.7,6.49462014]
[1755866491642,0.0168,4233.8,4233.7,6.47100014]
[1755866494405,0.0168,4233.8,4233.7,6.65400014]
[1755866494954,0.0178,4233.8,4233.7,6.47100014]
[1755866498541,0.0178,4233.8,4233.7,6.65400014]
[1755866499010,0.0178,4233.8,4233.7,6.76840014]
[1755866499210,0.0178,4233.8,4233.7,7.42840014]
[1755866499406,0.001,4234.7,4233.8,2.36194435]
[1755866499407,1e-08,4233.9,4233.8,2.36194435]
[1755866499641,1e-08,4233.9,4233.8,4.47634435]
[1755866500140,1e-08,4233.9,4233.8,4.49996379]
[1755866500343,1e-08,4233.9,4233.8,5.13634435]
[1755866502342,1e-08,4233.9,4233.8,5.37394435]
[1755866503041,0.00020001,4234.7,4234.6,2.36149813]
[1755866503207,0.00020001,4234.7,4234.6,8.59111311]
[1755866503408,0.00020001,4234.7,4234.6,4.36149813]
[1755866503613,0.00020001,4234.7,4234.6,8.38249813]
[1755866504344,0.00020001,4234.7,4234.6,8.56549813]
[1755866504850,0.00020001,4234.7,4234.6,8.38249813]
[1755866505618,0.00020001,4234.7,4234.6,4.17849813]
[1755866505818,0.00020001,4234.7,4234.6,8.40111311]
[1755866506021,0.00020001,4234.7,4234.6,8.37749813]
[1755866506225,0.00020001,4234.7,4234.6,8.37649813]
[1755866506828,0.00020001,4234.7,4234.0,1.817]
[1755866506829,0.75650001,4234.7,4234.0,1.817]
[1755866507136,0.75650001,4234.7,4234.6,2.36149813]
[1755866507339,0.75650001,4234.7,4234.6,6.55849813]
[1755866507525,0.00020001,4234.7,4234.6,6.55849813]
[1755866507716,0.00020001,4234.7,4234.6,6.74149813]
[1755866508122,0.00020001,4234.7,4234.6,6.55849813]
[1755866508344,1e-08,4234.8,4234.7,3.02144236]
[1755866508533,1e-08,4234.8,4234.7,3.20444236]
[1755866509352,1e-08,4234.8,4234.7,7.41844236]
[1755866509759,1e-08,4234.8,4234.7,2.54444236]
[1755866509920,1e-08,4234.8,4234.7,7.41844236]
[1755866510250,1e-08,4234.8,4234.7,10.41844236]
[1755866510557,1e-08,4234.8,4234.7,10.53284236]
[1755866513438,1e-08,4234.8,4234.7,6.20444236]
[1755866513649,1e-08,4234.8,4234.7,10.41244236]
[1755866513964,0.519,4236.8,4236.7,2.36032761]
[1755866514260,1.2753,4236.8,4236.7,6.56732761]
[1755866514556,1.2753,4236.8,4236.7,4.207]
[1755866514762,1.2753,4236.8,4236.7,6.56732761]
[1755866515163,1.2745,4236.8,4236.7,6.56732761]
[1755866515676,0.5182,4236.8,4236.7,6.56732761]
[1755866516038,1.2745,4236.8,4235.9,1.816]
[1755866516233,0.4707,4236.7,4235.9,1.816]
[1755866516433,0.2856,4236.0,4235.9,2.36077338]
[1755866516653,0.7563,4236.0,4235.7,6.57987488]
[1755866516860,0.5182,4236.8,4236.4,2.36048261]
[1755866517167,0.5182,4236.8,4236.7,2.36032761]
[1755866517340,0.9889,4236.8,4236.7,6.57932761]
[1755866517540,1.2745,4236.8,4236.7,4.219]
[1755866517743,1.2745,4236.8,4236.7,6.57932761]
[1755866517947,1.2745,4236.8,4236.7,4.219]
[1755866518141,1.2745,4236.8,4236.7,6.57932761]
[1755866518564,1.2745,4236.8,4236.7,4.219]
[1755866518968,1.2745,4236.8,4236.7,6.57932761]
[1755866519669,0.5182,4236.8,4236.7,6.57932761]
[1755866519843,0.8038,4236.8,4236.7,6.57932761]
[1755866520045,1.2745,4236.8,4236.7,6.57932761]
[1755866520271,1.2745,4236.8,4236.7,4.214]
[1755866520584,1.40195,4236.8,4236.7,4.214]
[1755866520933,1.2745,4236.8,4236.7,6.57432761]
[1755866521465,1.2745,4236.8,4236.7,4.218]
[1755866521684,1.2745,4236.8,4236.7,6.57832761]
[1755866524092,0.5182,4236.8,4236.7,6.57832761]
[1755866524647,1.2745,4236.8,4236.7,6.57832761]
[1755866524968,0.5182,4236.8,4236.7,6.57832761]
[1755866525340,0.5182,4236.8,4236.7,6.93961038]
[1755866525536,0.5182,4236.8,4236.7,6.75661038]
[1755866526089,0.5182,4236.8,4236.7,6.74761038]
[1755866527356,0.5174,4236.8,4236.7,6.74761038]
[1755866527780,1.2737,4236.8,4236.7,4.38428277]
[1755866528089,1.40107,4236.8,4236.7,6.56632761]
[1755866528399,1.2737,4236.8,4236.7,4.206]
[1755866528554,1.2737,4236.8,4236.7,6.56632761]
[1755866529060,0.5174,4236.8,4236.7,6.56632761]
[1755866529254,0.5174,4236.8,4236.7,6.74932761]
[1755866529860,0.001,4237.7,4236.7,6.74932761]
[1755866529861,0.001,4237.7,4237.6,2.35982631]
[1755866530061,0.001,4237.7,4237.6,6.56282631]
[1755866530376,0.66,4237.5,4236.8,4.214]
[1755866530556,0.2991,4236.9,4236.6,0.004]
[1755866530757,22.06372331,4237.7,4236.7,4.218]
[1755866530758,0.4444,4237.7,4236.7,4.218]
[1755866530954,0.001,4237.7,4237.6,2.35982631]
[1755866531155,0.001,4237.7,4237.6,8.39482631]
[1755866531361,0.001,4237.7,4237.6,4.17582631]
[1755866531674,0.001,4237.7,4237.6,8.37992899]
[1755866531854,0.001,4237.7,4237.6,4.15792899]
[1755866532571,0.7435,4237.7,4237.6,4.17582631]
[1755866532892,0.001,4237.7,4237.6,8.39582631]
[1755866533101,0.001,4237.7,4237.6,8.57882631]
[1755866534375,0.3001,4237.7,4237.6,8.39282631]
[1755866534575,0.001,4237.7,4237.6,8.39282631]
[1755866534878,0.001,4237.7,4237.6,4.17582631]
[1755866535279,0.001,4237.7,4237.6,8.40082631]
[1755866535501,0.001,4237.7,4237.6,4.17582631]
[1755866535704,0.001,4237.7,4237.6,4.35882631]
[1755866535981,0.001,4237.7,4237.6,8.60642457]
[1755866536191,0.001,4237.7,4237.6,8.58282631]
[1755866536416,0.001,4237.7,4237.6,8.69722631]
[1755866536771,0.001,4237.7,4237.6,4.47322631]
[1755866536977,0.001,4237.7,4237.6,8.58082631]
[1755866538511,0.001,4237.7,4237.6,8.69522631]
[1755866538686,0.02,4238.8,4238.7,2.3592139]
[1755866538890,0.02,4238.8,4238.7,8.5792139]
[1755866539093,0.02,4238.8,4238.7,4.3572139]
[1755866539420,22.18099785,4242.0,4238.7,4.3572139]
[1755866539421,1e-08,4239.8,4239.7,2.35865745]
[1755866539630,0.01920001,4240.8,4240.7,2.35810125]
[1755866539919,0.01920001,4240.8,4240.7,8.43910125]
[1755866540121,0.01920001,4240.8,4240.7,8.59010125]
[1755866540622,1e-08,4240.8,4240.7,11.68450125]
[1755866540998,1e-08,4240.8,4240.7,4.17310125]
[1755866541200,0.74250001,4240.8,4240.7,1.815]
[1755866541602,0.74250001,4240.8,4237.9,0.4415]
[1755866541603,0.66,4240.7,4237.9,0.4415]
[1755866541814,1.1034,4240.7,4238.1,2.35954791]
[1755866542013,1e-08,4240.8,4238.0,6.087]
[1755866542014,0.66,4240.5,4238.0,6.087]
[1755866542328,0.66,4240.3,4238.1,3.46509547]
[1755866542628,0.4434,4240.2,4238.2,2.35949223]
[1755866542833,0.4434,4240.2,4238.1,3.46509547]
[1755866542834,0.4434,4240.2,4238.1,0.4415]
[1755866543126,0.66,4240.1,4238.2,4.27]
[1755866543330,0.02,4238.8,4238.7,2.3592139]
[1755866543493,0.02,4238.8,4238.7,6.9147139]
[1755866543692,0.02,4238.8,4238.7,2.6447139]
[1755866544030,0.02,4238.8,4238.7,6.93930603]
[1755866544193,0.36908718,4240.3,4240.2,2.35837932]
[1755866544391,1e-08,4240.8,4240.2,2.35837932]
[1755866544392,1e-08,4240.8,4240.4,2.3582668]
[1755866544623,0.36900894,4240.8,4240.2,1.815]
[1755866544829,0.4434,4240.7,4240.3,3.283]
[1755866545143,1e-08,4240.8,4240.5,2.35821247]
[1755866545292,1e-08,4240.8,4240.6,0.02358156]
[1755866545493,0.2991,4240.5,4240.2,1.815]
[1755866545697,0.4434,4240.4,4240.3,2.94658323]
[1755866545940,0.7425,4240.4,4240.3,4.278]
[1755866546440,0.7425,4240.4,4240.3,6.6363237]
[1755866546738,0.7425,4240.4,4240.2,1.815]
[1755866546903,0.2991,4240.4,4240.3,4.279]
[1755866547620,0.7425,4240.4,4240.2,1.815]
[1755866547821,0.2991,4240.4,4240.2,1.815]
[1755866547995,0.2991,4240.4,4240.3,3.206]
[1755866548323,0.2991,4240.4,4240.2,1.815]
[1755866548527,0.2991,4240.4,4239.2,1.814]
[1755866548528,0.66,4240.3,4239.2,1.814]
[1755866548733,0.36901192,4240.8,4239.3,2.92]
[1755866549028,1e-08,4240.8,4240.2,2.35833918]
[1755866549323,0.4434,4240.7,4240.3,1.814]
[1755866549535,0.2991,4240.4,4240.3,8.4533237]
[1755866549729,0.4434,4240.7,4240.5,2.35819993]
[1755866549908,0.36902863,4240.8,4240.4,2.35822542]
[1755866550104,0.81242863,4240.8,4240.3,8.45331487]
[1755866550418,0.4434,4240.7,4240.3,6.095]
[1755866550804,0.4434,4240.6,4240.3,6.095]
[1755866551301,1e-08,4240.8,4240.7,2.35810125]
[1755866551504,1e-08,4240.8,4240.7,6.63410125]
[1755866551911,0.00020001,4241.3,4240.8,2.35802671]
[1755866552112,0.00020001,4241.3,4240.7,4.276]
[1755866552311,0.00020001,4241.3,4240.7,6.63409221]
[1755866552521,0.00020001,4241.3,4240.7,4.276]
[1755866552730,0.44360001,4241.3,4240.8,4.274]
[1755866552938,0.2991,4240.9,4240.8,4.274]
[1755866553717,0.7425,4240.9,4240.4,0.02358268]
[1755866553917,0.4434,4240.8,4240.5,3.273]
[1755866554131,0.00020001,4241.3,4240.3,1.814]
[1755866554132,0.4434,4240.7,4240.3,1.814]
[1755866554310,0.4434,4240.7,4240.6,4.271]
[1755866554504,0.36898873,4240.9,4240.6,4.271]
[1755866554710,0.4434,4240.8,4240.6,4.271]
[1755866555106,0.4434,4240.8,4240.7,4.27]
[1755866555347,0.7425,4240.8,4240.7,4.27]
[1755866555509,0.00020001,4241.3,4240.7,4.27]
[1755866555510,0.66,4241.2,4240.7,4.27]
[1755866555709,0.4434,4241.1,4240.8,0.02358045]
[1755866555925,0.2991,4240.9,4240.8,0.02358045]
[1755866556343,0.4434,4241.0,4240.8,0.02358045]
[1755866556561,0.2991,4240.9,4240.8,0.02358045]
[1755866556850,0.00020001,4241.3,4240.8,4.28758045]
[1755866557011,0.00020001,4241.3,4240.9,0.0235799]
[1755866558122,0.00020001,4241.3,4241.2,0.3019]
[1755866558320,0.00020001,4241.3,4241.2,8.73372325]
[1755866558520,0.00020001,4241.3,4241.2,6.8353]
[1755866558720,0.00020001,4241.3,4241.2,6.3759]
[1755866559628,0.00020001,4241.3,4241.2,6.8353]
[1755866560015,0.00020001,4241.3,4241.2,9.19312325]
[1755866560766,0.00020001,4241.3,4241.2,12.19312325]
[1755866560932,0.00020001,4241.3,4241.2,12.31072325]
[1755866561127,0.00020001,4241.3,4241.2,12.19312325]
[1755866561349,0.00020001,4241.3,4241.2,12.31072325]
[1755866561861,0.00020001,4241.3,4241.2,12.31172325]
[1755866562209,0.00020001,4241.3,4241.2,12.97172325]
[1755866562414,0.00020001,4241.3,4241.2,24.59585225]
[1755866562647,0.00020001,4241.3,4241.2,19.91871325]
[1755866562953,0.00020001,4241.3,4241.2,15.47172325]
[1755866563162,0.00020001,4241.3,4241.2,12.97172325]
[1755866563955,0.00020001,4241.3,4241.2,24.35375725]
[1755866564265,0.01780003,4241.8,4241.7,2.35754532]
[1755866564588,0.01780003,4241.8,4241.7,38.42656823]
[1755866564867,0.01780003,4241.8,4241.7,43.32319178]
[1755866565015,0.02,4242.8,4242.7,2.35698965]
[1755866565214,0.02,4242.8,4242.7,41.072656]
[1755866565452,0.2495,4243.5,4243.4,2.35660083]
[1755866565652,0.2495,4243.5,4243.4,14.77660483]
[1755866565968,0.2495,4243.5,4243.4,7.03710083]
[1755866566174,0.2495,4243.5,4243.4,0.17945247]
[1755866566459,0.2495,4243.5,4243.4,6.3779]
[1755866567019,0.5618,4243.5,4243.1,0.2495]
[1755866567456,0.2495,4243.5,4243.1,4.5135]
[1755866567623,0.4498,4243.4,4243.1,4.5135]
[1755866567824,0.2495,4243.5,4242.9,4.264]
[1755866568965,0.2495,4243.5,4243.4,2.35660083]
[1755866569126,0.2495,4243.5,4243.4,4.261]
[1755866569327,0.2495,4243.5,4243.4,4.262]
[1755866569522,1.0116,4243.5,4243.4,4.262]
[1755866569731,1.0116,4243.5,4243.1,4.261]
[1755866570040,0.4498,4243.4,4242.8,4.261]
[1755866570246,0.4498,4243.4,4242.9,0.02356878]
[1755866570557,0.2495,4243.5,4242.8,4.44123894]
[1755866571339,0.3123,4242.9,4242.8,4.44123894]
[1755866571631,0.3123,4242.9,4242.1,1.813]
[1755866571632,0.7621,4242.9,4242.1,1.813]
[1755866571969,0.7621,4242.9,4242.2,4.258]
[1755866572188,0.4498,4242.8,4241.9,4.258]
[1755866572554,0.3123,4242.0,4241.9,4.258]
[1755866572865,0.7621,4242.0,4241.4,4.257]
[1755866573068,0.4498,4241.9,4241.4,4.257]
[1755866573381,0.4498,4241.8,4241.4,4.257]
[1755866573553,0.4498,4242.3,4241.4,4.257]
[1755866574995,0.4498,4242.3,4241.5,0.02357656]
[1755866575304,0.36883163,4242.8,4241.4,4.257]
[1755866575600,0.001,4243.2,4242.7,0.3019]
[1755866575760,0.001,4243.2,4242.8,6.64]
[1755866575959,0.001,4243.2,4243.1,2.65866745]
[1755866576188,0.001,4243.2,4243.1,0.3019]
[1755866576489,0.0002,4243.2,4243.1,2.65866745]
[1755866576692,0.0002,4243.2,4242.9,0.2495]
[1755866576859,0.0002,4243.2,4242.9,2.60636867]
[1755866577060,0.0002,4243.2,4242.9,0.2495]
[1755866577674,0.0002,4243.2,4242.8,6.063]
[1755866578503,0.0002,4243.2,4242.9,0.02356878]
[1755866579306,0.0002,4243.2,4242.8,6.063]
[1755866579615,0.45,4243.2,4242.8,6.063]
[1755866580192,0.0002,4243.2,4242.8,6.063]
[1755866580506,0.3123,4242.9,4242.6,4.25]
[1755866580810,0.3123,4242.7,4242.6,4.25]
[1755866581113,0.0002,4243.2,4242.6,4.25]
[1755866581300,0.0002,4243.2,4242.6,4.5519]
[1755866581674,0.0002,4243.2,4242.6,6.9089]
[1755866581874,0.0002,4243.2,4242.8,0.004]
[1755866582598,0.45,4243.2,4242.8,0.004]
[1755866582794,0.0002,4243.2,4242.8,0.004]
[1755866582999,0.0002,4243.2,4242.9,0.02356878]
[1755866583316,0.0002,4243.2,4243.0,4.252]
[1755866583829,0.0002,4243.2,4242.8,0.004]
[1755866583830,0.7621,4243.1,4242.8,0.004]
[1755866584013,0.0002,4243.2,4242.8,0.004]
[1755866584533,0.19937099,4243.5,4243.2,2.458]
[1755866584690,0.19937099,4243.5,4243.4,2.65850083]
[1755866584893,0.19937099,4243.5,4243.4,6.43610083]
[1755866585092,0.19937099,4243.5,4243.4,6.23550083]
[1755866585328,0.19937099,4243.5,4243.4,6.41305967]